bitfinex/quotes_ETHUSD_20211001
["timestamp","ask_amount","ask_price","bid_price","bid_amount"]
[1633059148233,1.91845744,3002.1,3001.5,3.3247199]
[1633059148434,1.91845744,3002.1,3001.5,3.32325392]
[1633059148635,1.91845744,3002.1,3001.5,7.37972346]
[1633059148837,1.91845744,3002.1,3001.5,4.99954131]
[1633059149037,1.91845744,3002.1,3001.5,3.32325392]
[1633059149638,1.91845744,3002.1,3001.5,0.003]
[1633059150035,1.91845744,3002.1,3001.3,0.003]
[1633059150635,6.96470495,3002.1,3001.3,0.003]
[1633059151035,1.96608495,3002.1,3001.3,0.003]
[1633059152244,4.99896,3001.9,3001.3,0.003]
[1633059152838,1.96608495,3002.1,3001.3,0.003]
[1633059153239,2.96608495,3002.1,3001.3,0.003]
[1633059153439,2.96608495,3002.1,3001.3,5.0015]
[1633059153639,2.96608495,3002.1,3001.3,0.003]
[1633059153840,2.96608495,3002.1,3001.4,0.003]
[1633059154440,1.96608495,3002.1,3001.4,5.00132]
[1633059154847,1.96608495,3002.1,3001.5,0.003]
[1633059155240,1.96608495,3002.1,3001.4,0.003]
[1633059156641,0.83384867,3001.7,3001.4,0.003]
[1633059156842,0.83384867,3001.7,3001.3,0.003]
[1633059157043,5.29880495,3002.1,3001.3,0.003]
[1633059157446,0.04762751,3002.1,3001.3,0.003]
[1633059157645,0.04762751,3002.1,3001.3,5.00153]
[1633059158045,0.04762751,3002.1,3001.4,0.83603124]
[1633059158444,1.98013261,3002.0,3001.5,1.84052477]
[1633059159050,1.98013261,3002.0,3001.6,4.99794]
[1633059159247,1.98013261,3002.0,3001.5,3.3349421]
[1633059159447,1.98013261,3002.0,3001.5,3.3319421]
[1633059159646,1.98013261,3002.0,3001.3,0.003]
[1633059160049,0.72213766,3001.7,3001.3,0.003]
[1633059160647,0.72213766,3001.7,3001.2,0.003]
[1633059160847,1.98013261,3002.0,3001.2,0.003]
[1633059161449,1.98013261,3002.0,3001.2,1.52554599]
[1633059161914,8.25588381,3002.1,3001.4,0.88541473]
[1633059162049,1.89572067,3002.0,3001.4,0.88541473]
[1633059162251,1.04803311,3002.1,3001.5,0.003]
[1633059163049,2.68737319,3002.1,3001.5,0.003]
[1633059163448,2.68737319,3002.1,3001.5,8.3332777]
[1633059163648,1.04803311,3002.1,3001.5,8.3332777]
[1633059164049,0.04762751,3002.1,3001.5,3.3351077]
[1633059165050,0.94200145,3002.1,3001.5,3.3351077]
[1633059166454,1.89748523,3002.0,3001.5,3.3351077]
[1633059166656,0.94200145,3002.1,3001.5,8.3331777]
[1633059166856,1.89748107,3002.0,3001.5,8.3331777]
[1633059167456,1.89748107,3002.0,3001.5,3.3351077]
[1633059167759,0.94200145,3002.1,3001.6,4.99803]
[1633059169961,0.04762751,3002.1,3001.8,1.294]
[1633059170263,0.04762751,3002.1,3001.7,2.43899971]
[1633059170264,0.003,3002.5,3002.2,0.81052927]
[1633059170460,0.003,3002.5,3002.4,0.079913]
[1633059170660,0.003,3002.5,3002.4,3.87518214]
[1633059170928,0.003,3003.0,3002.9,0.9117255]
[1633059171062,0.003,3003.0,3002.9,3.74720838]
[1633059171462,0.003,3003.0,3002.9,4.74720838]
[1633059172060,0.003,3003.0,3002.9,6.04120838]
[1633059172261,0.003,3003.0,3002.9,3.4866385]
[1633059172662,0.003,3003.0,3002.9,8.4818585]
[1633059174067,0.006,3003.2,3002.9,10.97306749]
[1633059174366,0.006,3003.2,3002.9,9.67906749]
[1633059174570,0.006,3003.2,3003.0,2.294]
[1633059174767,0.006,3003.2,3003.1,0.201]
[1633059175767,0.006,3003.2,3003.1,1.495]
[1633059176370,0.006,3003.2,3003.1,6.48868]
[1633059176570,0.006,3003.2,3003.1,7.48868]
[1633059176768,0.006,3003.2,3003.1,9.17208]
[1633059178172,0.006,3003.2,3003.1,7.87808]
[1633059178372,0.006,3003.2,3003.1,9.17208]
[1633059180235,0.006,3003.2,3003.1,17.17208]
[1633059181233,0.006,3003.2,3003.1,9.17208]
[1633059182235,0.006,3003.2,3003.1,7.87808]
[1633059182435,0.006,3003.2,3003.1,6.19468]
[1633059182836,0.05360542,3003.2,3003.1,6.19468]
[1633059183239,0.05360542,3003.2,3003.1,7.48868]
[1633059183636,0.05360542,3003.2,3003.1,6.19468]
[1633059185038,0.05360542,3003.2,3003.1,7.48868]
[1633059185237,0.05360542,3003.2,3003.1,15.48868]
[1633059190438,0.05360542,3003.2,3003.1,14.19468]
[1633059190641,0.05360542,3003.2,3003.1,5.19468]
[1633059191239,0.05360542,3003.2,3003.1,0.201]
[1633059192441,0.05360542,3003.2,3003.1,1.201]
[1633059197647,0.05360542,3003.2,3003.1,2.495]
[1633059198049,0.05360542,3003.2,3003.1,1.201]
[1633059203456,0.05360542,3003.2,3003.1,2.495]
[1633059204259,0.05360542,3003.2,3003.1,1.201]
[1633059208865,0.05360542,3003.2,3003.1,2.495]
[1633059210068,0.05360542,3003.2,3003.1,1.201]
[1633059221937,0.05360542,3003.2,3003.1,2.05055613]
[1633059227077,0.05360542,3003.2,3003.1,21.63055613]
[1633059227482,0.02960542,3003.2,3003.1,22.92455613]
[1633059227680,0.006,3003.4,3003.2,8.6056]
[1633059227940,0.006,3003.4,3003.3,24.801]
[1633059228078,0.006,3003.4,3003.3,33.801]
[1633059228478,0.006,3003.4,3003.3,35.47535136]
[1633059228678,0.006,3003.4,3003.3,43.42684136]
[1633059229082,0.006,3004.3,3003.3,43.42684136]
[1633059229083,0.006,3004.7,3004.5,2.65846252]
[1633059229280,0.006,3004.7,3004.5,3.22321409]
[1633059229478,0.006,3004.7,3004.6,1.0]
[1633059229679,0.006,3004.7,3004.6,1.201]
[1633059229879,0.006,3004.7,3004.6,3.05377752]
[1633059230280,0.006,3004.7,3004.6,8.04608752]
[1633059231680,0.006,3004.7,3004.6,9.34008752]
[1633059231880,0.006,3004.7,3004.6,16.12600052]
[1633059232080,0.006,3004.7,3004.6,8.12600052]
[1633059232281,0.006,3004.7,3004.6,1.201]
[1633059232481,0.006,3004.7,3004.5,1.33521409]
[1633059233080,0.006,3004.7,3004.6,4.9928]
[1633059234482,0.006,3004.7,3004.5,1.33521409]
[1633059235083,0.00691101,3004.7,3004.5,1.33521409]
[1633059235682,0.00691101,3004.7,3004.5,6.32817409]
[1633059236281,0.00691101,3004.7,3004.6,1.8009535]
[1633059236683,0.00691101,3004.7,3004.6,4.20529688]
[1633059236946,0.00691101,3004.7,3004.6,2.79317879]
[1633059237481,0.00691101,3004.7,3004.6,2.5696389]
[1633059237683,0.00691101,3004.7,3004.6,3.5696389]
[1633059238883,0.00691101,3004.7,3004.6,2.5696389]
[1633059239083,0.00691101,3004.7,3004.6,3.5696389]
[1633059239284,0.006,3004.8,3004.7,7.7]
[1633059239485,0.006,3004.8,3004.7,11.41089987]
[1633059239684,0.006,3004.8,3004.7,3.71089987]
[1633059239955,0.006,3004.8,3004.7,0.201]
[1633059240088,0.030157,3004.8,3004.7,0.201]
[1633059240885,2.71018375,3004.8,3004.7,0.201]
[1633059241085,4.59864753,3004.8,3004.5,1.33521409]
[1633059241285,4.15237094,3004.7,3004.5,1.33521409]
[1633059241485,4.03030282,3004.8,3004.0,0.003]
[1633059241486,2.3922144,3004.5,3004.0,0.003]
[1633059241685,0.024157,3004.1,3003.9,0.003]
[1633059241886,0.201,3004.0,3003.5,0.006]
[1633059242088,0.201,3004.0,3003.4,0.006]
[1633059242285,2.55878808,3003.9,3003.4,1.43770638]
[1633059242489,0.201,3003.9,3003.4,1.43770638]
[1633059242686,0.201,3003.9,3003.5,0.006]
[1633059242949,0.201,3003.9,3003.5,5.00044]
[1633059243288,0.201,3003.9,3003.6,0.003]
[1633059243488,0.201,3003.9,3003.8,0.91498951]
[1633059243688,2.11418625,3004.5,3003.8,0.91498951]
[1633059243890,2.11418625,3004.5,3003.8,0.91798951]
[1633059243891,1.88706493,3004.4,3003.8,0.91798951]
[1633059244089,1.88706493,3004.4,3004.1,4.99311]
[1633059244488,1.88706493,3004.4,3004.0,0.003]
[1633059244691,1.88706493,3004.4,3004.0,1.90956268]
[1633059244888,1.88706493,3004.4,3004.0,1.90656268]
[1633059245391,1.88706493,3004.4,3004.0,6.90017268]
[1633059245788,1.88706493,3004.4,3004.0,1.90656268]
[1633059246590,1.88706493,3004.4,3004.0,6.90017268]
[1633059246992,1.88706493,3004.4,3004.0,1.90656268]
[1633059248590,1.88706493,3004.4,3003.9,1.003]
[1633059248790,1.88706493,3004.4,3003.9,0.003]
[1633059248994,1.88706493,3004.4,3004.0,0.003]
[1633059250393,2.46190521,3004.4,3004.0,0.003]
[1633059250995,0.57485627,3004.3,3004.0,0.003]
[1633059251193,0.57487838,3004.3,3004.0,0.003]
[1633059251394,1.53376484,3004.1,3003.7,0.003]
[1633059251594,1.88896078,3004.0,3003.6,1.85572248]
[1633059251795,0.57487838,3004.3,3003.6,1.85572248]
[1633059252056,2.46380419,3004.4,3003.8,0.89119915]
[1633059252256,1.88889793,3004.3,3003.8,0.89119915]
[1633059252453,0.57486942,3004.4,3003.9,4.997]
[1633059252454,1.88896641,3004.2,3003.9,4.997]
[1633059252656,2.11418625,3004.5,3003.9,0.003]
[1633059252657,1.88899473,3004.1,3003.9,0.003]
[1633059252853,1.58254411,3004.3,3004.0,0.003]
[1633059253056,1.58254411,3004.3,3003.7,0.003]
[1633059253457,0.57491768,3004.3,3003.7,0.003]
[1633059253656,0.57491768,3004.3,3003.8,0.91300885]
[1633059253860,0.5748967,3004.4,3003.7,0.003]
[1633059254059,0.5748967,3004.4,3003.9,0.003]
[1633059254258,1.294,3004.2,3003.9,0.003]
[1633059254457,0.5749578,3004.2,3003.9,0.003]
[1633059254656,0.5749578,3004.2,3003.7,0.003]
[1633059255259,0.57495605,3004.3,3003.7,0.003]
[1633059255656,0.57495605,3004.3,3003.7,4.99718]
[1633059256059,0.57496697,3004.4,3003.8,0.003]
[1633059256260,2.57279997,3004.4,3003.8,0.003]
[1633059256657,2.57279997,3004.4,3003.7,0.003]
[1633059256861,0.57496697,3004.4,3003.7,0.003]
[1633059257458,0.57503069,3004.2,3003.7,0.003]
[1633059258258,2.41669397,3004.3,3003.7,0.003]
[1633059259060,0.57502861,3004.3,3003.7,0.003]
[1633059259262,0.57506218,3004.2,3003.7,0.003]
[1633059260062,2.39455963,3004.2,3003.7,0.003]
[1633059260461,0.57506218,3004.2,3003.7,0.003]
[1633059260663,0.57509905,3004.3,3003.7,0.003]
[1633059261663,1.61978055,3004.1,3003.7,0.003]
[1633059262064,2.19491127,3004.1,3003.7,0.003]
[1633059262265,2.19491127,3004.1,3003.3,0.006]
[1633059262266,0.57516224,3004.0,3003.3,0.006]
[1633059262764,1.61978055,3004.1,3003.5,1.55159543]
[1633059262765,3.04495418,3004.1,3003.5,1.55159543]
[1633059263166,1.42517363,3004.1,3003.6,0.003]
[1633059263567,0.85001596,3004.1,3003.5,1.55159543]
[1633059263767,4.99509,3004.1,3003.5,1.55159543]
[1633059263970,5.57023598,3004.1,3003.5,1.55159543]
[1633059264167,0.57514598,3004.1,3003.5,1.55159543]
[1633059264767,0.57517497,3004.0,3003.5,1.55159543]
[1633059264966,1.33140259,3004.0,3003.5,1.55159543]
[1633059265167,1.33140259,3004.0,3003.6,0.003]
[1633059265568,0.57521907,3003.8,3003.6,0.003]
[1633059265766,0.57521907,3003.8,3003.2,0.006]
[1633059265767,5.301,3003.7,3003.2,0.006]
[1633059265966,5.301,3003.7,3002.5,0.003]
[1633059265967,7.25939077,3003.6,3002.9,0.009]
[1633059266170,0.09351968,3003.0,3002.8,0.009]
[1633059266369,1.43221968,3003.0,3002.8,0.009]
[1633059266768,1.51517324,3002.9,3002.8,0.009]
[1633059266967,1.3387,3003.0,3002.8,0.009]
[1633059267369,1.3387,3003.0,3002.5,5.00813]
[1633059267568,1.3387,3003.0,3002.6,0.009]
[1633059267569,3.56550413,3003.0,3002.6,0.009]
[1633059267771,0.201,3002.9,3002.6,0.009]
[1633059267969,1.8832543,3002.8,3002.3,0.012]
[1633059268170,2.40226574,3002.7,3002.3,0.012]
[1633059268369,2.39791266,3002.7,3002.3,0.012]
[1633059268569,0.96080065,3002.7,3002.3,0.012]
[1633059268770,0.201,3002.7,3002.3,0.012]
[1633059269973,1.294,3002.5,3002.3,0.012]
[1633059270172,0.201,3002.5,3002.3,0.012]
[1633059270378,1.201,3002.5,3002.3,0.012]
[1633059270574,0.201,3002.5,3002.3,0.012]
[1633059270775,2.71695866,3002.4,3002.3,0.012]
[1633059270975,0.201,3002.4,3002.3,0.012]
[1633059274680,2.38229472,3002.4,3002.3,0.012]
[1633059275079,0.201,3002.4,3002.3,0.012]
[1633059291895,0.201,3002.4,3002.3,5.0088]
[1633059292094,0.201,3002.4,3002.3,1.536423]
[1633059293096,0.201,3002.4,3002.3,0.012]
[1633059299599,1.3553,3002.4,3002.3,0.012]
[1633059299796,6.35316,3002.4,3002.3,0.012]
[1633059300402,8.5077628,3002.4,3002.3,0.012]
[1633059300600,8.5319198,3002.4,3002.3,0.012]
[1633059300799,9.5319198,3002.4,3002.3,0.012]
[1633059300998,7.377317,3002.4,3002.3,0.012]
[1633059301398,9.51987736,3002.4,3002.3,0.012]
[1633059301599,9.51987736,3002.4,3001.7,0.003]
[1633059301600,0.81052927,3002.2,3001.7,0.003]
[1633059301799,2.76387741,3002.1,3001.7,0.003]
[1633059302000,3.53371,3002.1,3001.2,0.006]
[1633059302199,4.99898,3001.7,3001.2,0.006]
[1633059302400,0.201,3001.6,3001.2,0.006]
[1633059304000,1.9873,3001.6,3001.2,0.006]
[1633059304199,2.5829,3001.6,3001.2,0.006]
[1633059304399,3.3551,3001.6,3001.1,0.006]
[1633059305203,2.01077677,3001.2,3001.1,0.006]
[1633059305401,4.99947,3001.4,3001.1,0.006]
[1633059305600,4.99947,3001.4,3000.8,0.009]
[1633059305801,2.3819,3001.6,3000.8,0.009]
[1633059305802,3.33307,3001.5,3000.8,0.009]
[1633059306405,3.33307,3001.5,3000.8,0.75468041]
[1633059306604,1.86850292,3001.4,3001.0,4.99905]
[1633059307004,3.33307,3001.5,3001.1,0.006]
[1633059307606,1.0,3001.7,3001.1,0.006]
[1633059307804,1.0,3001.7,3001.1,5.0049]
[1633059308004,1.89703552,3001.5,3000.9,0.009]
[1633059308207,1.89703552,3001.5,3001.2,0.006]
[1633059308605,1.225157,3001.8,3000.9,0.009]
[1633059308806,4.99917,3001.6,3000.9,0.009]
[1633059309604,1.6101109,3001.4,3000.9,0.009]
[1633059309805,4.99917,3001.6,3000.9,0.009]
[1633059310206,6.224127,3001.8,3000.9,5.00818]
[1633059310408,1.225157,3001.8,3000.9,5.00818]
[1633059310606,1.225157,3001.8,3001.0,0.009]
[1633059311008,1.93824616,3001.4,3001.0,0.009]
[1633059311208,3.3329,3001.6,3001.0,0.009]
[1633059311609,3.3329,3001.6,3000.9,0.009]
[1633059312872,1.225157,3001.8,3000.9,5.00813]
[1633059313271,1.225157,3001.8,3001.0,0.009]
[1633059313573,0.81052927,3002.2,3001.7,0.079913]
[1633059313773,0.81052927,3002.2,3001.8,0.77061764]
[1633059313973,0.81052927,3002.2,3002.1,0.079913]
[1633059314372,3.53602,3003.0,3002.2,0.81052927]
[1633059314373,0.003,3003.0,3002.2,0.81052927]
[1633059314576,0.003,3003.0,3002.8,1.98459692]
[1633059315178,0.003,3003.0,3002.9,0.71405689]
[1633059315377,0.003,3003.0,3002.9,6.10005689]
[1633059315580,0.003,3003.0,3002.9,7.42420807]
[1633059315776,0.003,3003.0,3002.9,15.42420807]
[1633059315977,0.003,3003.0,3002.9,13.04405689]
[1633059317177,0.003,3003.0,3002.9,19.70410689]
[1633059317986,0.003,3003.0,3002.9,11.70410689]
[1633059318279,0.003,3003.0,3002.9,10.70410689]
[1633059318477,0.003,3003.0,3002.9,11.70410689]
[1633059319678,0.003,3003.0,3002.9,10.70410689]
[1633059320079,0.003,3003.0,3002.9,11.70410689]
[1633059320677,0.003,3003.0,3002.9,10.70410689]
[1633059320879,0.003,3003.0,3002.9,11.70410689]
[1633059322078,0.003,3003.0,3002.9,10.41010689]
[1633059322678,0.003,3003.0,3002.9,9.41010689]
[1633059323080,0.003,3003.0,3002.9,10.70410689]
[1633059323280,0.003,3003.0,3002.9,11.70410689]
[1633059324881,0.003,3003.0,3002.9,10.41010689]
[1633059325683,0.003,3003.0,3002.9,9.69605]
[1633059325883,0.003,3003.0,3002.9,1.0]
[1633059326087,0.003,3003.0,3002.5,0.201]
[1633059326282,0.003,3003.0,3002.7,1.294]
[1633059326484,0.003,3003.0,3002.5,0.201]
[1633059326681,0.003,3003.0,3002.9,1.54410651]
[1633059327083,0.003,3003.0,3002.8,1.00891295]
[1633059328687,0.003,3003.0,3002.8,2.68031571]
[1633059331486,0.003,3003.0,3002.8,7.67593571]
[1633059331688,0.003,3003.0,3002.8,2.68031571]
[1633059336496,0.003,3003.0,3002.8,2.66991878]
[1633059336692,0.003,3003.0,3002.8,7.66553878]
[1633059337893,0.003,3003.0,3002.9,8.051]
[1633059338293,0.003,3003.0,3002.9,9.345]
[1633059338493,0.003,3003.0,3002.9,10.345]
[1633059339693,0.003,3003.0,3002.9,2.495]
[1633059340093,0.003,3003.0,3002.9,1.201]
[1633059343094,0.003,3003.0,3002.9,0.201]
[1633059344499,0.003,3003.0,3002.9,5.19663]
[1633059352905,0.003,3003.0,3002.9,0.201]
[1633059353307,0.003,3003.0,3002.9,5.19673]
[1633059353905,0.003,3003.0,3002.9,5.99725138]
[1633059355308,0.003,3003.0,3002.9,7.29125138]
[1633059355508,0.003,3003.0,3002.9,17.46672588]
[1633059355709,0.003,3003.0,3002.9,37.04672588]
[1633059355908,0.003,3003.0,3002.9,35.49763228]
[1633059358512,0.003,3004.0,3002.9,36.8753001]
[1633059358716,0.003,3004.0,3003.7,8.34825]
[1633059358911,0.003,3004.0,3003.9,13.649913]
[1633059359116,0.006,3004.6,3004.5,5.04858392]
[1633059359311,0.006,3004.6,3004.5,14.89145333]
[1633059359512,0.006,3004.7,3004.5,23.39431932]
[1633059359714,0.006,3004.7,3004.5,31.71290442]
[1633059359977,0.006,3004.7,3004.6,2.294]
[1633059360111,0.006,3004.7,3004.6,2.495]
[1633059361911,0.006,3004.7,3004.6,1.201]
[1633059364313,0.006,3004.7,3004.6,20.781]
[1633059364515,0.006,3004.7,3004.6,1.201]
[1633059365915,0.006,3004.7,3004.6,2.495]
[1633059366715,0.006,3004.7,3004.6,1.201]
[1633059367316,0.006,3004.7,3004.6,0.201]
[1633059367515,0.006,3004.7,3004.6,1.201]
[1633059368318,0.006,3004.7,3004.6,0.201]
[1633059371981,0.006,3004.7,3004.5,3.41784323]
[1633059372922,0.006,3004.7,3004.6,0.94058172]
[1633059373721,0.006,3004.7,3004.6,1.14158172]
[1633059376124,0.006,3004.7,3004.6,0.201]
[1633059377124,0.006,3004.7,3004.6,3.03521106]
[1633059378126,0.006,3004.7,3004.6,0.201]
[1633059379326,0.006,3004.7,3004.6,2.16687006]
[1633059380127,0.006,3004.7,3004.6,0.201]
[1633059387703,0.006,3004.7,3004.4,6.6548051]
[1633059387704,1.73066619,3004.5,3004.4,6.6548051]
[1633059387902,2.90662347,3004.5,3004.0,0.003]
[1633059388096,2.90662347,3004.5,3003.5,0.003]
[1633059388097,0.024157,3004.3,3003.8,0.003]
[1633059388296,0.024157,3004.3,3003.3,11.3095]
[1633059388297,0.024157,3004.3,3003.4,0.006]
[1633059388505,1.77298384,3003.5,3003.4,0.006]
[1633059388798,4.98203961,3003.5,3003.1,0.006]
[1633059388997,2.35635272,3003.4,3003.1,0.006]
[1633059389197,0.201,3003.3,3002.8,0.009]
[1633059389396,0.201,3003.3,3002.7,0.009]
[1633059389596,0.201,3003.3,3002.7,1.80907981]
[1633059390011,0.201,3003.3,3002.8,0.009]
[1633059390398,0.201,3003.3,3003.1,0.90652794]
[1633059390599,0.024157,3004.0,3003.1,0.98644094]
[1633059390799,11.746,3004.3,3003.5,0.079913]
[1633059391102,11.746,3004.3,3003.6,0.003]
[1633059391103,1.87566173,3004.2,3003.6,0.003]
[1633059391301,11.746,3004.3,3003.6,0.003]
[1633059391501,11.746,3004.3,3003.7,0.85248887]
[1633059391701,2.00383515,3004.0,3003.7,0.85248887]
[1633059391901,2.00383515,3004.0,3003.8,0.003]
[1633059392202,2.00383515,3004.0,3003.6,0.003]
[1633059393002,0.57347289,3004.4,3003.6,0.003]
[1633059393201,1.875698,3004.3,3003.6,0.003]
[1633059393401,1.0320425,3004.5,3003.6,0.003]
[1633059393402,1.87567232,3004.2,3003.6,0.003]
[1633059393603,1.0320425,3004.5,3003.6,0.003]
[1633059393801,1.87567556,3004.4,3003.6,0.003]
[1633059394001,0.77624469,3004.3,3003.6,0.003]
[1633059394202,1.87578376,3004.2,3003.6,0.003]
[1633059394403,1.65768452,3004.0,3003.6,0.003]
[1633059395404,1.0320425,3004.5,3003.6,0.003]
[1633059395604,1.8758682,3004.4,3003.6,0.003]
[1633059395807,6.8705282,3004.4,3003.6,0.003]
[1633059396112,1.87602669,3004.3,3003.6,0.003]
[1633059396307,1.87602671,3004.2,3003.6,0.003]
[1633059396505,0.86683455,3004.3,3003.6,0.82731836]
[1633059396704,1.87604168,3004.2,3003.6,0.82731836]
[1633059396909,1.87604168,3004.2,3003.7,0.003]
[1633059397104,1.0320425,3004.5,3003.7,0.003]
[1633059397303,1.87610117,3004.4,3003.7,0.003]
[1633059397904,0.024157,3004.1,3003.7,0.003]
[1633059398108,1.87631093,3004.0,3003.7,0.003]
[1633059398304,1.87631093,3004.0,3003.1,0.201]
[1633059398305,1.87631093,3004.0,3003.2,0.006]
[1633059398708,1.87718003,3003.6,3003.2,0.006]
[1633059398906,0.87875869,3003.9,3003.2,0.006]
[1633059399106,0.024157,3004.1,3003.2,0.006]
[1633059399107,4.99519,3004.0,3003.2,0.006]
[1633059399307,1.87642956,3003.9,3003.2,0.006]
[1633059399507,4.99519,3004.0,3003.2,0.006]
[1633059399707,1.87642968,3003.9,3003.2,0.006]
[1633059400307,1.75845017,3003.8,3003.2,0.006]
[1633059401709,4.99548,3003.8,3003.2,0.006]
[1633059401908,0.024157,3004.1,3003.2,0.006]
[1633059401909,6.66081,3004.0,3003.2,0.006]
[1633059402709,8.28497169,3004.0,3003.2,0.006]
[1633059402912,1.87684296,3003.9,3003.2,5.00089]
[1633059403109,1.87684296,3003.9,3003.6,1.84896184]
[1633059403408,1.87684296,3003.9,3003.7,0.003]
[1633059403810,1.87684296,3003.9,3003.2,0.006]
[1633059404010,1.024157,3004.1,3003.2,0.006]
[1633059404214,1.87712614,3004.0,3003.2,0.006]
[1633059404412,1.87712614,3004.0,3003.6,0.96828944]
[1633059404812,1.87712614,3004.0,3003.7,0.003]
[1633059405010,3.74944132,3004.0,3003.7,0.003]
[1633059405209,1.87729939,3003.9,3003.7,0.003]
[1633059405809,1.87729939,3003.9,3003.6,0.003]
[1633059406215,1.87729939,3003.9,3003.2,0.006]
[1633059406414,1.87729939,3003.9,3003.4,0.94189231]
[1633059406812,1.87729939,3003.9,3003.6,1.87261138]
[1633059407012,1.024157,3004.1,3003.6,1.87261138]
[1633059407213,1.024157,3004.1,3003.5,0.003]
[1633059407214,1.87261138,3003.6,3003.5,0.003]
[1633059407416,7.10407033,3003.6,3003.5,0.003]
[1633059407614,7.10407033,3003.6,3003.4,0.003]
[1633059407615,4.99275205,3003.6,3003.4,0.003]
[1633059407812,4.99275205,3003.6,3002.1,0.009]
[1633059407813,2.87756229,3003.5,3002.1,0.009]
[1633059408014,0.024157,3003.2,3002.2,0.78617831]
[1633059408213,0.024157,3003.2,3002.1,1.89807547]
[1633059408214,0.79912486,3002.5,3002.1,1.89807547]
[1633059408418,2.41215073,3002.4,3002.3,0.009]
[1633059408612,2.41215073,3002.4,3002.2,0.009]
[1633059408813,2.61315073,3002.4,3001.8,0.012]
[1633059409414,1.63466949,3002.1,3001.8,0.79419835]
[1633059409615,2.1992877,3002.0,3001.8,0.79419835]
[1633059409815,2.32102782,3002.2,3001.9,0.012]
[1633059410017,2.52202782,3002.4,3001.9,0.012]
[1633059411018,6.58782469,3002.1,3001.9,0.012]
[1633059411218,2.27505664,3002.0,3001.9,0.012]
[1633059411418,1.58944469,3002.1,3001.8,0.012]
[1633059411620,2.31695345,3002.2,3001.8,0.012]
[1633059412017,2.51670202,3002.4,3002.0,0.89853728]
[1633059412218,7.51468202,3002.4,3002.0,0.89853728]
[1633059412417,7.51468202,3002.4,3002.1,0.009]
[1633059412617,1.67754702,3002.3,3002.1,0.009]
[1633059413417,5.19898,3002.4,3002.1,0.009]
[1633059414420,1.89596888,3002.2,3002.1,0.009]
[1633059416621,5.19898,3002.4,3002.1,0.009]
[1633059416823,0.201,3002.4,3002.1,0.009]
[1633059417421,1.201,3002.4,3002.1,0.009]
[1633059417620,1.50413956,3002.2,3002.1,0.009]
[1633059419422,1.50413956,3002.2,3002.1,0.00123496]
[1633059419820,1.50413956,3002.2,3001.7,0.00423496]
[1633059420026,1.50413956,3002.2,3001.5,0.00723496]
[1633059420222,3.72513442,3002.2,3001.5,0.003]
[1633059420423,3.72513442,3002.2,3001.4,0.00423496]
[1633059420424,2.15412726,3002.1,3001.4,0.00723496]
[1633059420621,2.15412726,3002.1,3001.7,1.00588161]
[1633059420823,1.50413956,3002.2,3001.7,1.00588161]
[1633059421023,1.50413956,3002.2,3001.8,0.00423496]
[1633059421623,0.201,3002.4,3001.8,0.00423496]
[1633059421823,0.003,3003.0,3002.1,1.373913]
[1633059422027,0.003,3003.0,3002.1,0.079913]
[1633059422224,0.003,3003.0,3002.2,0.00123496]
[1633059422622,1.73047019,3002.5,3002.2,0.91164591]
[1633059422824,1.73047019,3002.5,3002.2,0.91041095]
[1633059423026,1.73047019,3002.5,3002.3,0.00123496]
[1633059423223,6.66349,3002.9,3002.3,0.00123496]
[1633059423424,0.003,3003.0,3002.3,0.00123496]
[1633059423625,3.33457,3003.0,3002.3,0.00123496]
[1633059424224,1.63436076,3002.5,3002.3,0.00123496]
[1633059424826,3.90506725,3002.9,3002.3,0.00123496]
[1633059425026,1.72687386,3002.9,3002.1,0.00123496]
[1633059425224,4.99761,3002.6,3002.1,0.00123496]
[1633059425823,6.77227558,3002.6,3002.1,0.00123496]
[1633059426632,1.318157,3002.4,3002.1,0.00123496]
[1633059426827,1.318157,3002.4,3002.0,0.00423496]
[1633059426828,2.15229364,3002.3,3002.0,0.00423496]
[1633059427027,2.15229364,3002.3,3001.5,0.00723496]
[1633059427233,1.72114339,3001.7,3001.2,1.50370068]
[1633059427427,2.17937177,3001.6,3001.4,0.84222612]
[1633059427627,1.72114339,3001.7,3001.3,5.00547496]
[1633059427827,2.15695722,3001.6,3001.5,0.00723496]
[1633059428028,2.34118182,3002.0,3001.4,0.00723496]
[1633059428229,2.54218182,3002.0,3001.4,0.00336649]
[1633059428428,0.024157,3001.7,3001.2,0.00336649]
[1633059428827,0.024157,3001.7,3001.1,0.79554941]
[1633059429028,0.024157,3001.7,3001.1,0.7878149]
[1633059429029,1.024157,3001.7,3001.1,0.7878149]
[1633059429227,2.30347301,3001.6,3001.1,0.7878149]
[1633059429629,2.30347301,3001.6,3001.2,0.00336649]
[1633059430029,0.003,3002.0,3001.5,0.079913]
[1633059430331,0.003,3002.0,3001.6,0.00336649]
[1633059431529,0.003,3002.0,3001.4,0.00336649]
[1633059431733,1.43727874,3001.8,3001.3,1.97854505]
[1633059431930,1.43727874,3001.8,3001.3,3.33185]
[1633059432130,1.43727874,3001.8,3001.4,0.00336649]
[1633059432535,1.43727874,3001.8,3001.4,5.00149649]
[1633059432930,0.003,3002.0,3001.5,0.00336649]
[1633059433331,0.003,3002.0,3001.4,0.00336649]
[1633059433731,0.003,3002.0,3001.6,4.9978]
[1633059434133,0.003,3002.0,3001.7,0.98373656]
[1633059434530,0.003,3002.0,3001.8,0.00336649]
[1633059435933,0.003,3002.0,3001.8,5.00075649]